[Event "World Junior Chess Championship U20 2022"]
[White "Carlo, Emanuele"]
[Black "Neelash, Saha"]
[WhiteFideId "2825380"]
[BlackFideId "5094160"]
[WhiteElo "2306"]
[BlackElo "2446"]
[Result "1-0"]
[Round "04"]
[TimeControl "5400+30"]
[Date "2022.10.14"]
[WhiteClock "0:03:27"]
[BlackClock "0:09:26"]

1. e4 {[%clk 1:30:59]}  e5 {[%clk 1:30:40]} 2. Nf3 {[%clk 1:31:10]}  Nf6 {[%clk 1:31:04]} 3. Nxe5 {[%clk 1:29:28]}  d6 {[%clk 1:31:29]} 4. Nf3 {[%clk 1:29:55]}  Nxe4 {[%clk 1:31:54]} 5. Nc3 {[%clk 1:30:19]}  Nxc3 {[%clk 1:32:18]} 6. dxc3 {[%clk 1:30:47]}  Be7 {[%clk 1:32:31]} 7. Be3 {[%clk 1:30:54]}  Nc6 {[%clk 1:32:52]} 8. Qd2 {[%clk 1:29:56]}  Bf5 {[%clk 1:33:09]} 9. O-O-O {[%clk 1:28:25]}  Qd7 {[%clk 1:33:32]} 10. Bd3 {[%clk 1:24:26]}  O-O {[%clk 1:30:56]} 11. Nd4 {[%clk 1:18:56]}  Nxd4 {[%clk 1:30:19]} 12. Bxd4 {[%clk 1:19:15]}  Be6 {[%clk 1:09:57]} 13. c4 {[%clk 1:10:29]}  f5 {[%clk 1:09:27]} 14. Rhe1 {[%clk 0:59:14]}  Bf6 {[%clk 1:05:41]} 15. Bxf6 {[%clk 0:59:08]}  Rxf6 {[%clk 1:06:05]} 16. Qc3 {[%clk 0:55:48]}  Qc6 {[%clk 1:03:13]} 17. Be2 {[%clk 0:52:10]}  Rb8 {[%clk 0:56:06]} 18. Bf3 {[%clk 0:48:21]}  Qc5 {[%clk 0:55:59]} 19. Rd4 {[%clk 0:44:04]}  a5 {[%clk 0:53:39]} 20. b3 {[%clk 0:36:00]}  c6 {[%clk 0:45:44]} 21. Kb2 {[%clk 0:33:02]}  Re8 {[%clk 0:41:46]} 22. a3 {[%clk 0:31:14]}  Bf7 {[%clk 0:41:22]} 23. Red1 {[%clk 0:29:43]}  a4 {[%clk 0:26:49]} 24. b4 {[%clk 0:25:28]}  Qe5 {[%clk 0:27:15]} 25. Rxd6 {[%clk 0:22:16]}  Qxd6 {[%clk 0:27:38]} 26. Rxd6 {[%clk 0:22:45]}  Rxd6 {[%clk 0:28:02]} 27. b5 {[%clk 0:22:04]}  cxb5 {[%clk 0:27:26]} 28. cxb5 {[%clk 0:21:38]}  Rd7 {[%clk 0:26:01]} 29. Qa5 {[%clk 0:19:01]}  Rc8 {[%clk 0:24:41]} 30. Qxa4 {[%clk 0:17:24]}  Rdc7 {[%clk 0:24:03]} 31. Be2 {[%clk 0:16:58]}  Rc3 {[%clk 0:20:44]} 32. Bd3 {[%clk 0:15:28]}  g6 {[%clk 0:20:11]} 33. Qd4 {[%clk 0:14:55]}  R3c5 {[%clk 0:20:32]} 34. a4 {[%clk 0:14:41]}  Bd5 {[%clk 0:20:51]} 35. f3 {[%clk 0:14:27]}  Kf7 {[%clk 0:16:53]} 36. h4 {[%clk 0:13:55]}  Be6 {[%clk 0:12:34]} 37. h5 {[%clk 0:12:03]}  Rd5 {[%clk 0:12:01]} 38. Qf4 {[%clk 0:11:22]}  gxh5 {[%clk 0:09:27]} 39. Qh6 {[%clk 0:10:56]}  Rd4 {[%clk 0:09:36]} 40. Qxh7+ {[%clk 0:10:38]}  Kf6 {[%clk 0:10:02]} 41. Qh6+ {[%clk 0:08:40]}  Kf7 {[%clk 0:10:24]} 42. Qxh5+ {[%clk 0:07:56]}  Kf6 {[%clk 0:10:48]} 43. Qh6+ {[%clk 0:06:39]}  Kf7 {[%clk 0:11:13]} 44. g4 {[%clk 0:06:02]}  Rb4+ {[%clk 0:10:11]} 45. Ka3 {[%clk 0:02:37]}  Rb1 {[%clk 0:10:36]} 46. c4 {[%clk 0:03:04]}  Ra1+ {[%clk 0:09:47]} 47. Kb4 {[%clk 0:03:08]}  Ra8 {[%clk 0:09:26]} 48. Qh7+ {[%clk 0:03:27]} 1-0


[Site "http://www.chessbomb.com"]

[Event "World Junior Chess Championship U20 2022"]
[White "Boyer, Mahel"]
[Black "Lux, Hugo de Melo"]
[WhiteFideId "45102422"]
[BlackFideId "2138298"]
[WhiteElo "2445"]
[BlackElo "2309"]
[Result "0-1"]
[Round "04"]
[TimeControl "5400+30"]
[Date "2022.10.14"]
[WhiteClock "0:01:50"]
[BlackClock "0:01:53"]

1. d4 {[%clk 1:26:50]}  d5 {[%clk 1:27:49]} 2. c4 {[%clk 1:19:11]}  dxc4 {[%clk 1:26:47]} 3. Nf3 {[%clk 1:18:11]}  Nf6 {[%clk 1:25:20]} 4. e3 {[%clk 1:18:26]}  Be6 {[%clk 1:25:22]} 5. Nc3 {[%clk 0:57:12]}  h6 {[%clk 1:23:55]} 6. e4 {[%clk 0:35:32]}  c6 {[%clk 1:21:22]} 7. a4 {[%clk 0:35:44]}  Nbd7 {[%clk 1:19:07]} 8. Nd2 {[%clk 0:34:10]}  Qa5 {[%clk 0:44:05]} 9. Bxc4 {[%clk 0:26:43]}  Bxc4 {[%clk 0:43:29]} 10. Nxc4 {[%clk 0:27:08]}  Qb4 {[%clk 0:42:47]} 11. Qe2 {[%clk 0:27:31]}  Nxe4 {[%clk 0:32:00]} 12. O-O {[%clk 0:27:26]}  Nd6 {[%clk 0:31:58]} 13. Nxd6+ {[%clk 0:26:38]}  Qxd6 {[%clk 0:32:26]} 14. d5 {[%clk 0:26:44]}  e6 {[%clk 0:14:18]} 15. Re1 {[%clk 0:16:46]}  cxd5 {[%clk 0:10:49]} 16. Nb5 {[%clk 0:16:21]}  Qb8 {[%clk 0:11:17]} 17. Qg4 {[%clk 0:08:47]}  Nf6 {[%clk 0:08:41]} 18. Qh4 {[%clk 0:04:20]}  Bd6 {[%clk 0:05:24]} 19. Bg5 {[%clk 0:04:06]}  Bxh2+ {[%clk 0:02:32]} 20. Kf1 {[%clk 0:01:58]}  hxg5 {[%clk 0:03:00]} 21. Qxh8+ {[%clk 0:02:12]}  Ke7 {[%clk 0:03:29]} 22. Qxg7 {[%clk 0:01:25]}  Qf4 {[%clk 0:03:37]} 23. Re2 {[%clk 0:00:35]}  Rg8 {[%clk 0:02:06]} 24. Qh6 {[%clk 0:00:54]}  Ne4 {[%clk 0:00:39]} 25. Ra3 {[%clk 0:00:32]}  Qc1+ {[%clk 0:00:43]} 26. Re1 {[%clk 0:00:32]}  Qc4+ {[%clk 0:01:05]} 27. Re2 {[%clk 0:01:23]}  Nd2+ {[%clk 0:01:29]} 28. Ke1 {[%clk 0:01:50]}  Qc1# {[%clk 0:01:53]} 0-1


[Site "http://www.chessbomb.com"]

[Event "World Junior Chess Championship U20 2022"]
[White "Ansat, Aldiyar"]
[Black "Harshavardhan, G B"]
[WhiteFideId "13715658"]
[BlackFideId "25059009"]
[WhiteElo "2262"]
[BlackElo "2433"]
[Result "1-0"]
[Round "04"]
[TimeControl "5400+30"]
[Date "2022.10.14"]
[WhiteClock "0:07:18"]
[BlackClock "0:05:43"]

1. e4 {[%clk 1:29:39]}  e5 {[%clk 1:30:15]} 2. Nf3 {[%clk 1:30:02]}  Nc6 {[%clk 1:30:15]} 3. Bb5 {[%clk 1:30:28]}  a6 {[%clk 1:30:23]} 4. Ba4 {[%clk 1:30:54]}  d6 {[%clk 1:30:09]} 5. O-O {[%clk 1:31:12]}  Bg4 {[%clk 1:29:21]} 6. h3 {[%clk 1:31:25]}  h5 {[%clk 1:29:24]} 7. d4 {[%clk 1:26:58]}  b5 {[%clk 1:28:45]} 8. Bb3 {[%clk 1:27:10]}  Nxd4 {[%clk 1:28:45]} 9. hxg4 {[%clk 1:27:34]}  hxg4 {[%clk 1:25:14]} 10. Ng5 {[%clk 1:27:59]}  Nh6 {[%clk 1:25:36]} 11. Bd5 {[%clk 0:49:53]}  c6 {[%clk 1:25:36]} 12. c3 {[%clk 0:50:14]}  cxd5 {[%clk 0:56:56]} 13. cxd4 {[%clk 0:50:39]}  Be7 {[%clk 0:57:17]} 14. Qd2 {[%clk 0:50:20]}  Bxg5 {[%clk 0:55:50]} 15. Qxg5 {[%clk 0:50:43]}  Qxg5 {[%clk 0:56:14]} 16. Bxg5 {[%clk 0:51:09]}  dxe4 {[%clk 0:56:36]} 17. dxe5 {[%clk 0:41:52]}  dxe5 {[%clk 0:56:47]} 18. Nc3 {[%clk 0:37:03]}  f5 {[%clk 0:56:28]} 19. Rfd1 {[%clk 0:35:10]}  Nf7 {[%clk 0:53:01]} 20. Be3 {[%clk 0:32:37]}  Rc8 {[%clk 0:49:23]} 21. Rac1 {[%clk 0:32:16]}  O-O {[%clk 0:40:37]} 22. g3 {[%clk 0:22:28]}  g5 {[%clk 0:31:39]} 23. Nd5 {[%clk 0:21:05]}  Rxc1 {[%clk 0:31:48]} 24. Rxc1 {[%clk 0:21:08]}  f4 {[%clk 0:31:13]} 25. Bb6 {[%clk 0:17:19]}  Kg7 {[%clk 0:26:26]} 26. Rc6 {[%clk 0:17:46]}  Rh8 {[%clk 0:19:42]} 27. Nf6 {[%clk 0:08:44]}  e3 {[%clk 0:19:31]} 28. fxe3 {[%clk 0:09:09]}  Rh3 {[%clk 0:19:53]} 29. Ne4 {[%clk 0:08:07]}  Nh8 {[%clk 0:14:12]} 30. exf4 {[%clk 0:06:12]}  gxf4 {[%clk 0:12:41]} 31. gxf4 {[%clk 0:06:38]}  Rf3 {[%clk 0:05:59]} 32. Ng5 {[%clk 0:05:51]}  Rg3+ {[%clk 0:04:42]} 33. Kf2 {[%clk 0:05:52]}  exf4 {[%clk 0:04:45]} 34. Bd4+ {[%clk 0:06:17]}  Kf8 {[%clk 0:05:10]} 35. Bxh8 {[%clk 0:06:34]}  Rd3 {[%clk 0:05:23]} 36. Bf6 {[%clk 0:06:53]}  Ke8 {[%clk 0:05:43]} 37. Rc8+ {[%clk 0:07:18]} 1-0


[Site "http://www.chessbomb.com"]

[Event "World Junior Chess Championship U20 2022"]
[White "Brahami, Lamine"]
[Black "Moksh, Amit Doshi"]
[WhiteFideId "7905637"]
[BlackFideId "25064967"]
[WhiteElo "2188"]
[BlackElo "2430"]
[Result "1/2-1/2"]
[Round "04"]
[TimeControl "5400+30"]
[Date "2022.10.14"]
[WhiteClock "0:04:48"]
[BlackClock "0:46:18"]

1. d4 {[%clk 1:30:55]}  Nf6 {[%clk 1:28:02]} 2. Nf3 {[%clk 1:30:46]}  d5 {[%clk 1:26:59]} 3. c4 {[%clk 1:30:44]}  e6 {[%clk 1:27:21]} 4. Bg5 {[%clk 1:30:07]}  dxc4 {[%clk 1:25:39]} 5. Nc3 {[%clk 1:24:04]}  a6 {[%clk 1:26:01]} 6. a4 {[%clk 1:22:20]}  Nc6 {[%clk 1:26:16]} 7. e3 {[%clk 1:20:34]}  Na5 {[%clk 1:26:34]} 8. Ne5 {[%clk 1:18:58]}  c5 {[%clk 1:21:27]} 9. dxc5 {[%clk 1:07:37]}  Qxd1+ {[%clk 1:16:04]} 10. Rxd1 {[%clk 1:08:01]}  Bxc5 {[%clk 1:16:24]} 11. Bxc4 {[%clk 1:01:42]}  Nd7 {[%clk 1:06:18]} 12. Ba2 {[%clk 0:48:37]}  f6 {[%clk 1:06:26]} 13. Nxd7 {[%clk 0:48:52]}  Bxd7 {[%clk 1:06:49]} 14. Bf4 {[%clk 0:48:35]}  Bb4 {[%clk 1:01:17]} 15. O-O {[%clk 0:34:16]}  Bxc3 {[%clk 1:00:38]} 16. bxc3 {[%clk 0:34:42]}  Bxa4 {[%clk 0:55:42]} 17. Rd6 {[%clk 0:32:10]}  e5 {[%clk 0:54:59]} 18. Bg3 {[%clk 0:32:32]}  Bb3 {[%clk 0:47:57]} 19. Bxb3 {[%clk 0:27:06]}  Nxb3 {[%clk 0:47:07]} 20. f4 {[%clk 0:27:25]}  exf4 {[%clk 0:41:58]} 21. exf4 {[%clk 0:24:25]}  O-O {[%clk 0:36:35]} 22. Rb1 {[%clk 0:19:12]}  Nc5 {[%clk 0:36:55]} 23. Rd5 {[%clk 0:19:12]}  Ne4 {[%clk 0:37:11]} 24. Rxb7 {[%clk 0:15:01]}  Rf7 {[%clk 0:37:34]} 25. Rb3 {[%clk 0:14:48]}  Rc7 {[%clk 0:37:19]} 26. Be1 {[%clk 0:14:24]}  a5 {[%clk 0:36:01]} 27. Ra3 {[%clk 0:13:43]}  Rc5 {[%clk 0:35:47]} 28. Rd4 {[%clk 0:10:08]}  f5 {[%clk 0:36:11]} 29. g4 {[%clk 0:09:19]}  Nf6 {[%clk 0:32:45]} 30. gxf5 {[%clk 0:08:44]}  Rxf5 {[%clk 0:31:51]} 31. Rda4 {[%clk 0:08:04]}  Re8 {[%clk 0:29:01]} 32. Bg3 {[%clk 0:08:01]}  Ra8 {[%clk 0:28:06]} 33. Bf2 {[%clk 0:07:41]}  Ra6 {[%clk 0:26:44]} 34. Bd4 {[%clk 0:05:42]}  Nd7 {[%clk 0:24:43]} 35. Be3 {[%clk 0:04:50]}  Re6 {[%clk 0:24:28]} 36. Kf2 {[%clk 0:04:16]}  Ne5 {[%clk 0:24:00]} 37. Kg3 {[%clk 0:02:26]}  Rg6+ {[%clk 0:23:27]} 38. Kf2 {[%clk 0:02:47]}  Ng4+ {[%clk 0:23:27]} 39. Kf3 {[%clk 0:03:06]}  Nxh2+ {[%clk 0:22:33]} 40. Ke4 {[%clk 0:03:00]}  Rf8 {[%clk 0:22:58]} 41. Rxa5 {[%clk 0:02:52]}  Ng4 {[%clk 0:22:51]} 42. Bd4 {[%clk 0:01:34]}  Nf6+ {[%clk 0:19:53]} 43. Kf3 {[%clk 0:29:45]}  h5 {[%clk 0:49:21]} 44. Ra2 {[%clk 0:26:30]}  h4 {[%clk 0:49:24]} 45. Rg5 {[%clk 0:25:48]}  Rh6 {[%clk 0:49:08]} 46. Rh2 {[%clk 0:17:29]}  Rf7 {[%clk 0:48:16]} 47. c4 {[%clk 0:16:10]}  Nh7 {[%clk 0:48:10]} 48. Rg4 {[%clk 0:15:29]}  g5 {[%clk 0:47:48]} 49. c5 {[%clk 0:13:55]}  Rxf4+ {[%clk 0:46:37]} 50. Rxf4 {[%clk 0:14:19]}  gxf4 {[%clk 0:47:01]} 51. Kxf4 {[%clk 0:12:37]}  Kf7 {[%clk 0:46:52]} 52. Ke4 {[%clk 0:11:58]}  Ke6 {[%clk 0:46:21]} 53. Ra2 {[%clk 0:08:58]}  Nf6+ {[%clk 0:44:25]} 54. Bxf6 {[%clk 0:02:58]}  Rxf6 {[%clk 0:44:08]} 55. Ra6+ {[%clk 0:03:13]}  Ke7 {[%clk 0:44:33]} 56. Rxf6 {[%clk 0:03:38]}  Kxf6 {[%clk 0:44:59]} 57. Kf4 {[%clk 0:04:02]}  Ke6 {[%clk 0:45:25]} 58. Kg4 {[%clk 0:04:26]}  Kd5 {[%clk 0:45:51]} 59. Kxh4 {[%clk 0:04:48]}  Kxc5 {[%clk 0:46:18]} 1/2-1/2


[Site "http://www.chessbomb.com"]

[Event "World Junior Chess Championship U20 2022"]
[White "Kanyamarala, Tarun"]
[Black "Asllani, Dorian"]
[WhiteFideId "45004714"]
[BlackFideId "1341332"]
[WhiteElo "2407"]
[BlackElo "2202"]
[Result "1/2-1/2"]
[Round "04"]
[TimeControl "5400+30"]
[Date "2022.10.14"]
[WhiteClock "0:14:21"]
[BlackClock "0:19:37"]

1. e4 {[%clk 1:30:56]}  c5 {[%clk 1:30:18]} 2. Nc3 {[%clk 1:30:53]}  Nc6 {[%clk 1:30:09]} 3. Nf3 {[%clk 1:31:05]}  g6 {[%clk 1:30:15]} 4. Bb5 {[%clk 1:31:21]}  Bg7 {[%clk 1:29:56]} 5. O-O {[%clk 1:30:17]}  Nf6 {[%clk 1:20:39]} 6. e5 {[%clk 1:27:54]}  Nh5 {[%clk 1:13:16]} 7. Re1 {[%clk 1:01:06]}  Nf4 {[%clk 1:10:29]} 8. d4 {[%clk 0:59:29]}  cxd4 {[%clk 1:10:15]} 9. Nxd4 {[%clk 0:59:17]}  Nxd4 {[%clk 1:08:51]} 10. Qxd4 {[%clk 0:57:21]}  Ne6 {[%clk 1:08:14]} 11. Qh4 {[%clk 0:56:57]}  O-O {[%clk 0:45:01]} 12. Bh6 {[%clk 0:55:32]}  d5 {[%clk 0:28:26]} 13. Rad1 {[%clk 0:41:02]}  d4 {[%clk 0:27:01]} 14. Ne4 {[%clk 0:11:19]}  Bxh6 {[%clk 0:16:26]} 15. Qxh6 {[%clk 0:11:39]}  Qd5 {[%clk 0:16:45]} 16. Ba4 {[%clk 0:05:22]}  Qxe5 {[%clk 0:14:43]} 17. Qh4 {[%clk 0:04:04]}  g5 {[%clk 0:14:43]} 18. Qh5 {[%clk 0:04:25]}  Qg7 {[%clk 0:07:11]} 19. Bb3 {[%clk 0:03:52]}  h6 {[%clk 0:07:34]} 20. h4 {[%clk 0:02:57]}  Nf4 {[%clk 0:05:15]} 21. Qf3 {[%clk 0:03:24]}  e5 {[%clk 0:05:29]} 22. hxg5 {[%clk 0:03:07]}  hxg5 {[%clk 0:05:52]} 23. Nd6 {[%clk 0:01:02]}  Qf6 {[%clk 0:03:22]} 24. Nxc8 {[%clk 0:01:01]}  Raxc8 {[%clk 0:03:07]} 25. Qxb7 {[%clk 0:01:16]}  a6 {[%clk 0:03:04]} 26. Qe4 {[%clk 0:00:58]}  Rc5 {[%clk 0:03:31]} 27. Rd2 {[%clk 0:00:41]}  Kg7 {[%clk 0:03:18]} 28. g3 {[%clk 0:01:03]}  Ng6 {[%clk 0:03:28]} 29. Rd3 {[%clk 0:01:17]}  Qc6 {[%clk 0:03:18]} 30. Qxc6 {[%clk 0:00:33]}  Rxc6 {[%clk 0:03:47]} 31. Rc1 {[%clk 0:00:34]}  Rd8 {[%clk 0:04:08]} 32. Re1 {[%clk 0:00:39]}  Rdc8 {[%clk 0:03:42]} 33. Kg2 {[%clk 0:00:50]}  f6 {[%clk 0:03:46]} 34. c3 {[%clk 0:00:48]}  Rd6 {[%clk 0:03:15]} 35. cxd4 {[%clk 0:00:41]}  exd4 {[%clk 0:03:31]} 36. Red1 {[%clk 0:00:56]}  Rcd8 {[%clk 0:03:49]} 37. Rc1 {[%clk 0:01:17]}  Ne5 {[%clk 0:03:48]} 38. Rdd1 {[%clk 0:01:26]}  g4 {[%clk 0:04:05]} 39. Rc7+ {[%clk 0:01:28]}  R8d7 {[%clk 0:04:13]} 40. Rc8 {[%clk 0:01:53]}  Rd8 {[%clk 0:04:39]} 41. Rc7+ {[%clk 0:14:29]}  R8d7 {[%clk 0:22:58]} 42. Rc8 {[%clk 0:14:21]}  Rd8 {[%clk 0:19:37]} 1/2-1/2


[Site "http://www.chessbomb.com"]

[Event "World Junior Chess Championship U20 2022"]
[White "Bournel, Antoine"]
[Black "Johannsson, Birkir Isak"]
[WhiteFideId "26093553"]
[BlackFideId "2314673"]
[WhiteElo "2402"]
[BlackElo "2165"]
[Result "1/2-1/2"]
[Round "04"]
[TimeControl "5400+30"]
[Date "2022.10.14"]
[WhiteClock "0:04:42"]
[BlackClock "0:12:09"]

1. d4 {[%clk 1:30:14]}  d5 {[%clk 1:28:02]} 2. Nf3 {[%clk 1:29:51]}  Nf6 {[%clk 1:28:23]} 3. c4 {[%clk 1:29:58]}  e6 {[%clk 1:28:41]} 4. Nc3 {[%clk 1:30:06]}  c6 {[%clk 1:29:02]} 5. Bg5 {[%clk 1:29:41]}  Nbd7 {[%clk 1:29:15]} 6. cxd5 {[%clk 1:28:21]}  exd5 {[%clk 1:29:34]} 7. e3 {[%clk 1:28:02]}  h6 {[%clk 1:28:45]} 8. Bh4 {[%clk 1:27:30]}  Be7 {[%clk 1:28:28]} 9. Bd3 {[%clk 1:25:50]}  O-O {[%clk 1:28:42]} 10. Qc2 {[%clk 1:23:52]}  Re8 {[%clk 1:28:47]} 11. O-O {[%clk 1:21:23]}  Ne4 {[%clk 1:27:13]} 12. Bxe4 {[%clk 1:18:30]}  Bxh4 {[%clk 1:26:53]} 13. Bh7+ {[%clk 1:18:03]}  Kh8 {[%clk 1:27:13]} 14. Bf5 {[%clk 1:17:03]}  Be7 {[%clk 1:23:38]} 15. Rab1 {[%clk 1:11:19]}  Bd6 {[%clk 1:13:40]} 16. b4 {[%clk 1:08:45]}  a6 {[%clk 1:11:59]} 17. Na4 {[%clk 1:02:32]}  Qe7 {[%clk 1:06:03]} 18. Nc5 {[%clk 0:57:52]}  Nb6 {[%clk 1:05:15]} 19. Bxc8 {[%clk 0:47:00]}  Raxc8 {[%clk 1:03:38]} 20. Nd2 {[%clk 0:39:55]}  Kg8 {[%clk 1:03:19]} 21. Rfe1 {[%clk 0:36:53]}  Qc7 {[%clk 0:54:42]} 22. g3 {[%clk 0:35:53]}  Re7 {[%clk 0:54:07]} 23. a4 {[%clk 0:35:29]}  Nd7 {[%clk 0:46:55]} 24. Ndb3 {[%clk 0:32:03]}  Nf6 {[%clk 0:44:04]} 25. Rec1 {[%clk 0:29:23]}  g6 {[%clk 0:41:30]} 26. Qe2 {[%clk 0:26:09]}  Qd8 {[%clk 0:32:29]} 27. Ra1 {[%clk 0:21:34]}  Ra8 {[%clk 0:22:56]} 28. Qe1 {[%clk 0:18:39]}  Qb6 {[%clk 0:18:40]} 29. Na5 {[%clk 0:17:21]}  Rc8 {[%clk 0:11:19]} 30. Rab1 {[%clk 0:16:49]}  Rcc7 {[%clk 0:09:17]} 31. Ncxb7 {[%clk 0:11:11]}  Rxb7 {[%clk 0:06:29]} 32. Rxc6 {[%clk 0:11:39]}  Qd8 {[%clk 0:06:17]} 33. Nxb7 {[%clk 0:11:39]}  Rxb7 {[%clk 0:06:45]} 34. Rxa6 {[%clk 0:12:04]}  h5 {[%clk 0:05:58]} 35. b5 {[%clk 0:11:50]}  h4 {[%clk 0:06:16]} 36. Qa5 {[%clk 0:10:16]}  Qd7 {[%clk 0:04:50]} 37. Ra8+ {[%clk 0:09:45]}  Bb8 {[%clk 0:05:06]} 38. Rc1 {[%clk 0:06:33]}  Kg7 {[%clk 0:04:50]} 39. Qe1 {[%clk 0:04:24]}  Qf5 {[%clk 0:03:15]} 40. Qe2 {[%clk 0:03:49]}  Ne4 {[%clk 0:03:03]} 41. g4 {[%clk 0:25:41]}  Qf6 {[%clk 0:30:14]} 42. Ra6 {[%clk 0:19:43]}  Bd6 {[%clk 0:28:36]} 43. Rcc6 {[%clk 0:17:21]}  Rd7 {[%clk 0:28:37]} 44. f3 {[%clk 0:13:15]}  Ng5 {[%clk 0:28:51]} 45. f4 {[%clk 0:13:08]}  Ne4 {[%clk 0:28:41]} 46. Ra8 {[%clk 0:12:05]}  Re7 {[%clk 0:23:00]} 47. Kg2 {[%clk 0:05:13]}  h3+ {[%clk 0:23:13]} 48. Kxh3 {[%clk 0:03:55]}  g5 {[%clk 0:12:31]} 49. Rcc8 {[%clk 0:04:24]}  Qh6+ {[%clk 0:12:26]} 50. Kg2 {[%clk 0:04:50]}  Nf6 {[%clk 0:11:54]} 51. Rh8 {[%clk 0:04:40]}  Qxh8 {[%clk 0:11:02]} 52. Rxh8 {[%clk 0:05:09]}  Kxh8 {[%clk 0:11:31]} 53. fxg5 {[%clk 0:05:00]}  Ne4 {[%clk 0:12:00]} 54. b6 {[%clk 0:04:54]}  Nxg5 {[%clk 0:12:09]} 55. a5 {[%clk 0:04:42]} 1/2-1/2


[Site "http://www.chessbomb.com"]

[Event "World Junior Chess Championship U20 2022"]
[White "Wartiovaara, Oliver"]
[Black "Tan, Jun Ying"]
[WhiteFideId "513024"]
[BlackFideId "5710413"]
[WhiteElo "2297"]
[BlackElo "2189"]
[Result "1/2-1/2"]
[Round "04"]
[TimeControl "5400+30"]
[Date "2022.10.14"]
[WhiteClock "0:20:28"]
[BlackClock "0:02:58"]

1. e4 {[%clk 1:30:53]}  c6 {[%clk 1:30:43]} 2. Nf3 {[%clk 1:30:05]}  d5 {[%clk 1:31:08]} 3. d3 {[%clk 1:30:31]}  Bg4 {[%clk 1:25:47]} 4. h3 {[%clk 1:30:31]}  Bh5 {[%clk 1:25:35]} 5. Nc3 {[%clk 1:30:29]}  e6 {[%clk 1:23:33]} 6. g4 {[%clk 1:30:47]}  Bg6 {[%clk 1:23:51]} 7. h4 {[%clk 1:31:03]}  dxe4 {[%clk 1:05:56]} 8. h5 {[%clk 1:29:35]}  Bxh5 {[%clk 0:59:34]} 9. Ne5 {[%clk 1:29:15]}  Bg6 {[%clk 0:53:49]} 10. Nxg6 {[%clk 1:28:58]}  fxg6 {[%clk 0:54:15]} 11. Nxe4 {[%clk 1:28:54]}  Nf6 {[%clk 0:53:33]} 12. Bg2 {[%clk 1:24:30]}  Nbd7 {[%clk 0:48:37]} 13. g5 {[%clk 1:18:35]}  Nxe4 {[%clk 0:45:52]} 14. Bxe4 {[%clk 1:18:58]}  Ne5 {[%clk 0:45:21]} 15. f4 {[%clk 1:10:49]}  Nf7 {[%clk 0:45:41]} 16. Qg4 {[%clk 1:10:58]}  Qd7 {[%clk 0:44:15]} 17. Bd2 {[%clk 1:11:11]}  O-O-O {[%clk 0:38:56]} 18. Bc3 {[%clk 1:10:53]}  e5 {[%clk 0:30:56]} 19. Qg1 {[%clk 0:57:09]}  Kb8 {[%clk 0:30:40]} 20. fxe5 {[%clk 0:56:44]}  Be7 {[%clk 0:28:07]} 21. Bd2 {[%clk 0:47:36]}  Nxe5 {[%clk 0:26:27]} 22. O-O-O {[%clk 0:47:56]}  Qe6 {[%clk 0:23:41]} 23. Kb1 {[%clk 0:47:58]}  Nf7 {[%clk 0:20:01]} 24. Be3 {[%clk 0:46:52]}  a6 {[%clk 0:19:29]} 25. Rd2 {[%clk 0:44:04]}  Nd6 {[%clk 0:18:20]} 26. Bf3 {[%clk 0:38:17]}  Nf5 {[%clk 0:18:16]} 27. Bb6 {[%clk 0:37:34]}  Rde8 {[%clk 0:17:31]} 28. Re2 {[%clk 0:34:35]}  Qd7 {[%clk 0:16:51]} 29. a3 {[%clk 0:32:01]}  Bd6 {[%clk 0:15:07]} 30. Rg2 {[%clk 0:28:54]}  Be5 {[%clk 0:13:30]} 31. Rg4 {[%clk 0:28:27]}  Bc7 {[%clk 0:11:41]} 32. Rb4 {[%clk 0:26:08]}  Re6 {[%clk 0:09:49]} 33. Qg4 {[%clk 0:21:49]}  Bxb6 {[%clk 0:08:19]} 34. Rxb6 {[%clk 0:22:12]}  Qd4 {[%clk 0:08:27]} 35. Rb4 {[%clk 0:20:17]}  Qxg4 {[%clk 0:08:47]} 36. Bxg4 {[%clk 0:20:00]}  h5 {[%clk 0:04:18]} 37. gxh6 {[%clk 0:19:31]}  Rxh6 {[%clk 0:03:29]} 38. Rg1 {[%clk 0:16:28]}  Re5 {[%clk 0:02:25]} 39. Bf3 {[%clk 0:15:50]}  Kc7 {[%clk 0:02:13]} 40. Rbg4 {[%clk 0:15:38]}  Ne7 {[%clk 0:01:42]} 41. Be4 {[%clk 0:15:54]}  Re6 {[%clk 0:01:46]} 42. b4 {[%clk 0:13:53]}  Rf6 {[%clk 0:26:09]} 43. Rg5 {[%clk 0:39:00]}  Kd7 {[%clk 0:24:09]} 44. a4 {[%clk 0:38:40]}  Ke8 {[%clk 0:20:30]} 45. b5 {[%clk 0:35:09]}  cxb5 {[%clk 0:19:47]} 46. Bxb7 {[%clk 0:35:34]}  bxa4 {[%clk 0:18:02]} 47. Be4 {[%clk 0:35:37]}  Rb6+ {[%clk 0:13:39]} 48. Kc1 {[%clk 0:35:03]}  Rb5 {[%clk 0:11:32]} 49. c4 {[%clk 0:33:20]}  Rb3 {[%clk 0:07:18]} 50. Ra5 {[%clk 0:32:42]}  Rh2 {[%clk 0:07:11]} 51. Rxa4 {[%clk 0:32:34]}  Nf5 {[%clk 0:05:40]} 52. Rg2 {[%clk 0:22:29]}  Rxg2 {[%clk 0:05:36]} 53. Bxg2 {[%clk 0:22:52]}  Rxd3 {[%clk 0:05:54]} 54. Rxa6 {[%clk 0:20:27]}  Rc3+ {[%clk 0:06:00]} 55. Kd2 {[%clk 0:20:51]}  Rxc4 {[%clk 0:06:24]} 56. Rxg6 {[%clk 0:21:04]}  Rd4+ {[%clk 0:05:59]} 57. Ke2 {[%clk 0:20:52]}  Kf7 {[%clk 0:06:18]} 58. Ra6 {[%clk 0:20:51]}  g6 {[%clk 0:06:22]} 59. Bh3 {[%clk 0:20:51]}  Re4+ {[%clk 0:05:36]} 60. Kf2 {[%clk 0:21:14]}  Ne7 {[%clk 0:05:58]} 61. Kf3 {[%clk 0:20:53]}  Re1 {[%clk 0:06:04]} 62. Kf2 {[%clk 0:21:03]}  Re5 {[%clk 0:06:24]} 63. Bg4 {[%clk 0:20:58]}  Rc5 {[%clk 0:06:43]} 64. Kg3 {[%clk 0:21:17]}  Kg7 {[%clk 0:06:45]} 65. Re6 {[%clk 0:21:03]}  Nd5 {[%clk 0:06:40]} 66. Bf3 {[%clk 0:21:09]}  Rc3 {[%clk 0:06:22]} 67. Kg4 {[%clk 0:20:50]}  Nf6+ {[%clk 0:05:29]} 68. Kg3 {[%clk 0:20:02]}  g5 {[%clk 0:05:22]} 69. Kf2 {[%clk 0:20:15]}  Kg6 {[%clk 0:05:25]} 70. Rc6 {[%clk 0:20:03]}  Ra3 {[%clk 0:05:44]} 71. Be4+ {[%clk 0:20:10]}  Kf7 {[%clk 0:04:42]} 72. Bf3 {[%clk 0:19:48]}  Ra2+ {[%clk 0:04:31]} 73. Kg3 {[%clk 0:20:00]}  Ra3 {[%clk 0:04:56]} 74. Kf2 {[%clk 0:20:24]}  Ra4 {[%clk 0:05:12]} 75. Kg3 {[%clk 0:20:42]}  Rf4 {[%clk 0:04:39]} 76. Ra6 {[%clk 0:20:56]}  Kg6 {[%clk 0:04:57]} 77. Rb6 {[%clk 0:21:15]}  Ra4 {[%clk 0:03:56]} 78. Rc6 {[%clk 0:21:17]}  Ra5 {[%clk 0:03:22]} 79. Rb6 {[%clk 0:21:21]}  Kf5 {[%clk 0:03:36]} 80. Rc6 {[%clk 0:21:31]}  Ra3 {[%clk 0:02:53]} 81. Rc5+ {[%clk 0:21:28]}  Ke6 {[%clk 0:03:17]} 82. Rc6+ {[%clk 0:21:31]}  Ke5 {[%clk 0:03:45]} 83. Rc5+ {[%clk 0:21:42]}  Kd4 {[%clk 0:03:42]} 84. Rf5 {[%clk 0:19:58]}  Ne4+ {[%clk 0:03:49]} 85. Kg4 {[%clk 0:19:46]}  Nd2 {[%clk 0:03:37]} 86. Bd5 {[%clk 0:19:48]}  Nf1 {[%clk 0:02:29]} 87. Rxf1 {[%clk 0:20:07]}  Kxd5 {[%clk 0:02:58]} 88. Kxg5 {[%clk 0:20:28]} 1/2-1/2


[Site "http://www.chessbomb.com"]